fUSD/lending_fUSD_20260630
["ID","MTS","AMOUNT","RATE_DAILY","PERIOD"]
[426769226,1782799832000,-5854.53440253,0.00011198,2]
[426769227,1782799832000,-617.78044718,0.00011198,2]
[426769225,1782799832000,-19389.73522672,0.00011188,2]
[426769224,1782799832000,-166.66,0.00011178,2]
[426769171,1782799832000,-160.0,9.855e-05,2]
[426769230,1782799832000,-651.72622502,0.00011198,2]
[426769229,1782799832000,-957.21944266,0.00011198,2]
[426769233,1782799832000,-646.62018074,0.00011198,2]
[426769231,1782799832000,-3392.08206105,0.00011198,2]
[426769232,1782799832000,-2465.82905941,0.00011198,2]
[426769206,1782799832000,-300.43,0.00010177,2]
[426769217,1782799832000,-3641.91576764,0.00011,2]
[426769228,1782799832000,-326.80947795,0.00011198,2]
[426769203,1782799832000,-493.76656725,0.00010128,2]
[426769207,1782799832000,-939.53,0.00010278,2]
[426769178,1782799832000,-305.51,9.878e-05,2]
[426769177,1782799832000,-225.0,9.877e-05,2]
[426769183,1782799832000,-301.75,9.935e-05,2]
[426769181,1782799832000,-2138.37,9.902e-05,2]
[426769185,1782799832000,-300.43,9.941e-05,2]
[426769187,1782799832000,-300.43,9.967e-05,2]
[426769186,1782799832000,-300.45,9.943e-05,2]
[426769184,1782799832000,-307.53,9.935e-05,2]
[426769190,1782799832000,-300.45,0.00010012,2]
[426769191,1782799832000,-300.43,0.0001002,2]
[426769194,1782799832000,-307.53,0.00010067,2]
[426769188,1782799832000,-305.51,9.974e-05,2]
[426769192,1782799832000,-939.53,0.00010027,2]
[426769189,1782799832000,-300.43,9.993e-05,2]
[426769195,1782799832000,-306.41,0.00010068,2]
[426769204,1782799832000,-193.0,0.0001014,2]
[426769202,1782799832000,-300.43,0.00010124,2]
[426769197,1782799832000,-305.51,0.0001007,2]
[426769201,1782799832000,-300.43,0.00010098,2]
[426769199,1782799832000,-300.43,0.00010072,2]
[426769198,1782799832000,-301.75,0.00010072,2]
[426769196,1782799832000,-307.53,0.00010069,2]
[426769200,1782799832000,-300.45,0.0001008,2]
[426769205,1782799832000,-300.43,0.00010151,2]
[426769193,1782799832000,-300.43,0.00010046,2]
[426769239,1782799838000,-32.99,0.00010069,2]
[426769238,1782799838000,-317.01,9.749e-05,2]
[426769242,1782799838000,-166.66,0.00011288,2]
[426769240,1782799838000,-284.02,0.00010069,2]
[426769243,1782799838000,-57.36512374,0.0001129,3]
[426769241,1782799838000,-5313.31167051,0.00011198,2]
[426769252,1782799840000,-166.66,0.00011397,2]
[426769251,1782799840000,-969.65924888,0.0001129,3]
[426769253,1782799840000,-500.0,0.00011479,2]
[426769254,1782799840000,-166.66,0.00011507,2]
[426769259,1782799840000,-749.11976716,0.00012331,2]
[426769258,1782799840000,-440.240762,0.00012328,2]
[426769257,1782799840000,-500.0,0.00012027,2]
[426769255,1782799840000,-283.86331034,0.00011831,2]
[426769265,1782799840000,-217.2,0.00012679,2]
[426769260,1782799840000,-312.57092181,0.000125,2]
[426769261,1782799840000,-169.51,0.00012519,2]
[426769267,1782799840000,-883.15138334,0.000128,4]
[426769264,1782799840000,-159.571,0.00012552,2]
[426769263,1782799840000,-3796.765,0.00012552,2]
[426769266,1782799840000,-2127.8340882,0.000128,4]
[426769262,1782799840000,-500.0,0.00012521,2]
[426769256,1782799840000,-3419.39495013,0.00011958,2]
[426769272,1782799841000,-1307.63743058,0.00012875,2]
[426769271,1782799841000,-1619.40732986,0.00012875,2]
[426769269,1782799841000,-889.01452846,0.000128,4]
[426769270,1782799841000,-725.28517967,0.00012875,2]
[426769291,1782799846000,-2505.87606089,0.00012875,2]
[426769287,1782799846000,-2317.07582022,0.00012875,2]
[426769293,1782800210000,-1528.263563,9.248e-05,2]
[426769298,1782800263000,-500.0,9.295e-05,2]
[426769300,1782800317000,-250.0,9.317e-05,2]
[426769301,1782800317000,500.0,8.69e-05,2]
[426769305,1782800318000,-4400.0,9.549e-05,2]
[426769302,1782800318000,-150.0,9.339e-05,2]
[426769303,1782800318000,-150.0,9.432e-05,2]
[426769304,1782800318000,-300.0,9.548e-05,2]
[426769306,1782800320000,-5000.0,9.549e-05,2]
[426769307,1782800321000,-5000.0,9.549e-05,2]
[426769310,1782800322000,-5000.0,9.549e-05,2]
[426769309,1782800322000,-5000.0,9.549e-05,2]
[426769308,1782800322000,-5000.0,9.549e-05,2]
[426769311,1782800323000,-5000.0,9.549e-05,2]
[426769314,1782800323000,-185.42053177,9.589e-05,2]
[426769312,1782800323000,-615.71457609,9.549e-05,2]
[426769315,1782800323000,-307.02,9.592e-05,2]
[426769313,1782800323000,-150.0,9.587e-05,2]
[426769316,1782800323000,-306.53,9.597e-05,2]
[426769317,1782800324000,306.33,9.596e-05,2]
[426769318,1782800325000,222.35540199,9.548e-05,2]
[426769320,1782800325000,394.54049523,9.548e-05,2]
[426769322,1782800325000,500.0,9.548e-05,2]
[426769321,1782800325000,211.4643022,9.548e-05,2]
[426769323,1782800325000,375.36295969,9.548e-05,2]
[426769324,1782800325000,500.0,9.548e-05,2]
[426769326,1782800325000,74.73826697,9.548e-05,2]
[426769319,1782800325000,500.0,9.548e-05,2]
[426769327,1782800325000,500.0,9.548e-05,2]
[426769328,1782800325000,500.0,9.548e-05,2]
[426769329,1782800325000,500.0,9.548e-05,2]
[426769330,1782800325000,500.0,9.548e-05,2]
[426769331,1782800325000,500.0,9.548e-05,2]
[426769332,1782800325000,500.0,9.548e-05,2]
[426769333,1782800325000,500.0,9.548e-05,2]
[426769325,1782800325000,425.26173303,9.548e-05,2]
[426769343,1782800326000,500.0,9.548e-05,2]
[426769344,1782800326000,500.0,9.548e-05,2]
[426769341,1782800326000,500.0,9.548e-05,2]
[426769342,1782800326000,500.0,9.548e-05,2]
[426769340,1782800326000,500.0,9.548e-05,2]
[426769336,1782800326000,500.0,9.548e-05,2]
[426769338,1782800326000,365.05877143,9.548e-05,2]
[426769337,1782800326000,134.94122857,9.548e-05,2]
[426769334,1782800326000,500.0,9.548e-05,2]
[426769335,1782800326000,290.32050446,9.548e-05,2]
[426769345,1782800326000,500.0,9.548e-05,2]
[426769339,1782800326000,500.0,9.548e-05,2]
[426769347,1782800326000,500.0,9.548e-05,2]
[426769348,1782800326000,134.94122857,9.548e-05,2]
[426769360,1782800326000,286.19344593,9.548e-05,2]
[426769349,1782800326000,286.19344593,9.548e-05,2]
[426769350,1782800326000,500.0,9.548e-05,2]
[426769351,1782800326000,500.0,9.548e-05,2]
[426769353,1782800326000,500.0,9.548e-05,2]
[426769352,1782800326000,500.0,9.548e-05,2]
[426769354,1782800326000,500.0,9.548e-05,2]
[426769355,1782800326000,500.0,9.548e-05,2]
[426769357,1782800326000,500.0,9.548e-05,2]
[426769356,1782800326000,500.0,9.548e-05,2]
[426769358,1782800326000,500.0,9.548e-05,2]
[426769361,1782800326000,500.0,9.548e-05,2]
[426769359,1782800326000,213.80655407,9.548e-05,2]
[426769346,1782800326000,500.0,9.548e-05,2]
[426769362,1782800327000,500.0,9.548e-05,2]
[426769364,1782800327000,500.0,9.548e-05,2]
[426769365,1782800327000,500.0,9.548e-05,2]
[426769363,1782800327000,500.0,9.548e-05,2]
[426769366,1782800332000,154.89,8.872e-05,2]
[426769372,1782800370000,-1873.75956556,9.548e-05,2]
[426769374,1782800370000,-631.2021722,9.548e-05,2]
[426769376,1782800370000,-1873.75956556,9.548e-05,2]
[426769370,1782800370000,-1252.48086888,9.548e-05,2]
[426769375,1782800370000,-1242.55739336,9.548e-05,2]
[426769371,1782800370000,-621.27869668,9.548e-05,2]
[426769369,1782800370000,-1873.75956556,9.548e-05,2]
[426769368,1782800370000,-1873.75956556,9.548e-05,2]
[426769373,1782800370000,-1873.75956556,9.548e-05,2]
[426769378,1782800370000,-9.92347552,9.548e-05,2]
[426769367,1782800370000,-500.0,9.548e-05,2]
[426769379,1782800370000,-1863.83609004,9.548e-05,2]
[426769377,1782800370000,-1873.75956556,9.548e-05,2]
[426769386,1782800370000,-200.0,8.832e-05,2]
[426769387,1782800370000,-1232.63391784,9.548e-05,2]
[426769385,1782800370000,-641.12564772,9.548e-05,2]
[426769388,1782800370000,-1873.75956556,9.548e-05,2]
[426769381,1782800370000,-1262.4043444,9.548e-05,2]
[426769382,1782800370000,-611.35522116,9.548e-05,2]
[426769380,1782800370000,-1873.75956556,9.548e-05,2]
[426769383,1782800370000,-1873.75956556,9.548e-05,2]
[426769384,1782800370000,-1873.75956556,9.548e-05,2]
[426769398,1782800371000,-1422.71044232,9.548e-05,2]
[426769406,1782800371000,-1873.75956556,9.548e-05,2]
[426769402,1782800371000,-1873.75956556,9.548e-05,2]
[426769401,1782800371000,-170.22957344,9.548e-05,2]
[426769400,1782800371000,-1703.52999212,9.548e-05,2]
[426769403,1782800371000,-1873.75956556,9.548e-05,2]
[426769397,1782800371000,-451.04912324,9.548e-05,2]
[426769389,1782800371000,-1693.6065166,9.548e-05,2]
[426769394,1782800371000,-801.43174564,9.548e-05,2]
[426769395,1782800371000,-1873.75956556,9.548e-05,2]
[426769393,1782800371000,-1072.32781992,9.548e-05,2]
[426769404,1782800371000,-1082.25129544,9.548e-05,2]
[426769390,1782800371000,-180.15304896,9.548e-05,2]
[426769391,1782800371000,-1873.75956556,9.548e-05,2]
[426769392,1782800371000,-1873.75956556,9.548e-05,2]
[426769399,1782800371000,-1873.75956556,9.548e-05,2]
[426769405,1782800371000,-791.50827012,9.548e-05,2]
[426769396,1782800371000,-1873.75956556,9.548e-05,2]
[426769407,1782800371000,-1873.75956556,9.548e-05,2]
[426769408,1782800371000,-460.97259876,9.548e-05,2]
[426769424,1782800371000,-1873.75956556,9.548e-05,2]
[426769422,1782800371000,-1723.37694316,9.548e-05,2]
[426769420,1782800371000,-1402.86349128,9.548e-05,2]
[426769419,1782800371000,-470.89607428,9.548e-05,2]
[426769418,1782800371000,-1873.75956556,9.548e-05,2]
[426769421,1782800371000,-1873.75956556,9.548e-05,2]
[426769417,1782800371000,-1873.75956556,9.548e-05,2]
[426769423,1782800371000,-150.3826224,9.548e-05,2]
[426769414,1782800371000,-1873.75956556,9.548e-05,2]
[426769415,1782800371000,-1092.17477096,9.548e-05,2]
[426769409,1782800371000,-1412.7869668,9.548e-05,2]
[426769412,1782800371000,-160.30609792,9.548e-05,2]
[426769410,1782800371000,-1873.75956556,9.548e-05,2]
[426769413,1782800371000,-1873.75956556,9.548e-05,2]
[426769416,1782800371000,-781.5847946,9.548e-05,2]
[426769411,1782800371000,-1713.45346764,9.548e-05,2]
[426769432,1782800372000,-1873.75956556,9.548e-05,2]
[426769433,1782800372000,-1733.30041868,9.548e-05,2]
[426769429,1782800372000,-1873.75956556,9.548e-05,2]
[426769428,1782800372000,-1873.75956556,9.548e-05,2]
[426769430,1782800372000,-480.8195498,9.548e-05,2]
[426769427,1782800372000,-771.66131908,9.548e-05,2]
[426769426,1782800372000,-1102.09824648,9.548e-05,2]
[426769425,1782800372000,-1873.75956556,9.548e-05,2]
[426769431,1782800372000,-1392.94001576,9.548e-05,2]
[426769434,1782800408000,170.459057,7.945e-05,2]
[426769436,1782800424000,1112.48,8.77e-05,2]
[426769435,1782800424000,-1619.40732986,8.91e-05,2]
[426769437,1782800437000,-1619.40732986,8.91e-05,2]
[426769438,1782800450000,-1307.63743058,8.91e-05,2]
[426769439,1782800463000,-555.1409527,8.91e-05,2]
[426769441,1782800466000,-576.68930381,8.917e-05,2]
[426769440,1782800466000,-426.13621631,8.91e-05,2]
[426769442,1782800469000,3997.17447988,9.488e-05,2]
[426769443,1782800487000,-5000.0,9.488e-05,2]
[426769444,1782800488000,-5000.0,9.488e-05,2]
[426769446,1782800489000,-5000.0,9.488e-05,2]
[426769445,1782800489000,-5000.0,9.488e-05,2]
[426769447,1782800490000,-5000.0,9.488e-05,2]
[426769448,1782800491000,-5000.0,9.488e-05,2]
[426769449,1782800492000,-5000.0,9.488e-05,2]
[426769450,1782800493000,-5000.0,9.488e-05,2]
[426769451,1782800494000,-5000.0,9.488e-05,2]
[426769452,1782800495000,-5000.0,9.488e-05,2]
[426769453,1782800516000,-889.01452846,9.488e-05,2]
[426769454,1782800528000,-889.01452846,9.488e-05,2]
[426769455,1782800555000,3728.81,8.752e-05,2]
[426769456,1782800575000,1806.79,8.729e-05,2]
[426769461,1782800603000,-276.17834666,9.487e-05,2]
[426769458,1782800603000,-167.19,8.992e-05,2]
[426769457,1782800603000,-500.0,8.81e-05,2]
[426769459,1782800603000,-505.27009635,9.487e-05,2]
[426769460,1782800603000,-155.64878139,9.487e-05,2]
[426769463,1782800603000,-500.0,9.487e-05,2]
[426769464,1782800603000,-162.75407178,9.487e-05,2]
[426769466,1782800603000,-500.0,9.487e-05,2]
[426769465,1782800603000,-403.22435313,9.487e-05,2]
[426769467,1782800603000,-500.0,9.487e-05,2]
[426769468,1782800603000,-500.0,9.487e-05,2]
[426769469,1782800603000,-329.73435069,9.487e-05,2]
[426769462,1782800603000,-500.0,9.487e-05,2]
[426769476,1782800604000,-426.69608845,9.487e-05,2]
[426769474,1782800604000,-975.75956556,9.487e-05,2]
[426769475,1782800604000,-975.75956556,9.487e-05,2]
[426769473,1782800604000,-500.0,9.487e-05,2]
[426769472,1782800604000,-975.75956556,9.487e-05,2]
[426769470,1782800604000,-646.02521487,9.487e-05,2]
[426769471,1782800604000,-500.0,9.487e-05,2]
[426769477,1782800605000,-73.30391155,9.487e-05,2]
[426769478,1782800605000,-975.75956556,9.487e-05,2]
[426769479,1782800605000,-587.00838859,9.487e-05,2]
[426769480,1782800605000,-975.75956556,9.487e-05,2]
[426769482,1782800605000,-975.75956556,9.487e-05,2]
[426769481,1782800605000,-975.75956556,9.487e-05,2]
[426769483,1782800605000,-436.64943762,9.487e-05,2]
[426769484,1782800606000,-539.11012794,9.487e-05,2]
[426769488,1782800606000,-975.75956556,9.487e-05,2]
[426769489,1782800606000,-557.85160982,9.487e-05,2]
[426769486,1782800606000,-975.75956556,9.487e-05,2]
[426769487,1782800606000,-975.75956556,9.487e-05,2]
[426769485,1782800606000,-975.75956556,9.487e-05,2]
[426769493,1782800607000,-975.75956556,9.487e-05,2]
[426769495,1782800607000,-679.05378202,9.487e-05,2]
[426769494,1782800607000,-975.75956556,9.487e-05,2]
[426769491,1782800607000,-975.75956556,9.487e-05,2]
[426769492,1782800607000,-975.75956556,9.487e-05,2]
[426769490,1782800607000,-417.90795574,9.487e-05,2]
[426769496,1782800608000,-296.70578354,9.487e-05,2]
[426769498,1782800608000,-975.75956556,9.487e-05,2]
[426769497,1782800608000,-975.75956556,9.487e-05,2]
[426769499,1782800608000,-975.75956556,9.487e-05,2]
[426769501,1782800608000,-800.25595422,9.487e-05,2]
[426769500,1782800608000,-975.75956556,9.487e-05,2]
[426769507,1782800609000,-921.45812642,9.487e-05,2]
[426769506,1782800609000,-975.75956556,9.487e-05,2]
[426769505,1782800609000,-975.75956556,9.487e-05,2]
[426769503,1782800609000,-975.75956556,9.487e-05,2]
[426769504,1782800609000,-975.75956556,9.487e-05,2]
[426769502,1782800609000,-175.50361134,9.487e-05,2]
[426769509,1782800610000,-975.75956556,9.487e-05,2]
[426769508,1782800610000,-54.30143914,9.487e-05,2]
[426769510,1782800610000,-975.75956556,9.487e-05,2]
[426769514,1782800610000,-66.90073306,9.487e-05,2]
[426769513,1782800610000,-975.75956556,9.487e-05,2]
[426769511,1782800610000,-975.75956556,9.487e-05,2]
[426769512,1782800610000,-975.75956556,9.487e-05,2]
[426769515,1782800611000,-908.8588325,9.487e-05,2]
[426769516,1782800611000,-975.75956556,9.487e-05,2]
[426769518,1782800611000,-975.75956556,9.487e-05,2]
[426769520,1782800611000,-188.10290526,9.487e-05,2]
[426769517,1782800611000,-975.75956556,9.487e-05,2]
[426769519,1782800611000,-975.75956556,9.487e-05,2]
[426769525,1782800612000,-975.75956556,9.487e-05,2]
[426769526,1782800612000,-309.30507746,9.487e-05,2]
[426769523,1782800612000,-975.75956556,9.487e-05,2]
[426769524,1782800612000,-975.75956556,9.487e-05,2]
[426769522,1782800612000,-975.75956556,9.487e-05,2]
[426769521,1782800612000,-787.6566603,9.487e-05,2]
[426769532,1782800613000,-430.50724966,9.487e-05,2]
[426769530,1782800613000,-975.75956556,9.487e-05,2]
[426769531,1782800613000,-975.75956556,9.487e-05,2]
[426769529,1782800613000,-975.75956556,9.487e-05,2]
[426769528,1782800613000,-975.75956556,9.487e-05,2]
[426769527,1782800613000,-666.4544881,9.487e-05,2]
[426769534,1782800614000,-975.75956556,9.487e-05,2]
[426769535,1782800614000,-975.75956556,9.487e-05,2]
[426769533,1782800614000,-545.2523159,9.487e-05,2]
[426769538,1782800614000,-551.70942186,9.487e-05,2]
[426769536,1782800614000,-975.75956556,9.487e-05,2]
[426769537,1782800614000,-975.75956556,9.487e-05,2]
[426769543,1782800615000,-973.12237754,9.487e-05,2]
[426769544,1782800615000,-686.09753416,9.487e-05,2]
[426769542,1782800615000,-973.12237754,9.487e-05,2]
[426769541,1782800615000,-973.12237754,9.487e-05,2]
[426769540,1782800615000,-973.12237754,9.487e-05,2]
[426769539,1782800615000,-421.41295568,9.487e-05,2]
[426769550,1782800616000,-820.48564646,9.487e-05,2]
[426769548,1782800616000,-973.12237754,9.487e-05,2]
[426769549,1782800616000,-973.12237754,9.487e-05,2]
[426769547,1782800616000,-973.12237754,9.487e-05,2]
[426769545,1782800616000,-287.02484338,9.487e-05,2]
[426769546,1782800616000,-973.12237754,9.487e-05,2]
[426769551,1782800616000,163.37,8.695e-05,2]
[426769553,1782800617000,-973.12237754,9.487e-05,2]
[426769552,1782800617000,-152.63673108,9.487e-05,2]
[426769554,1782800617000,-973.12237754,9.487e-05,2]
[426769556,1782800617000,-973.12237754,9.487e-05,2]
[426769557,1782800617000,-954.87375876,9.487e-05,2]
[426769555,1782800617000,-973.12237754,9.487e-05,2]
[426769560,1782800618000,-973.12237754,9.487e-05,2]
[426769559,1782800618000,-973.12237754,9.487e-05,2]
[426769558,1782800618000,-18.24861878,9.487e-05,2]
[426769561,1782800618000,-973.12237754,9.487e-05,2]
[426769564,1782800618000,-116.13949352,9.487e-05,2]
[426769563,1782800618000,-973.12237754,9.487e-05,2]
[426769562,1782800618000,-973.12237754,9.487e-05,2]
[426769570,1782800619000,-250.52760582,9.487e-05,2]
[426769569,1782800619000,-973.12237754,9.487e-05,2]
[426769567,1782800619000,-973.12237754,9.487e-05,2]
[426769568,1782800619000,-973.12237754,9.487e-05,2]
[426769566,1782800619000,-973.12237754,9.487e-05,2]
[426769565,1782800619000,-856.98288402,9.487e-05,2]
[426769571,1782800620000,-722.59477172,9.487e-05,2]
[426769572,1782800620000,-973.12237754,9.487e-05,2]
[426769573,1782800620000,-973.12237754,9.487e-05,2]
[426769575,1782800620000,-973.12237754,9.487e-05,2]
[426769574,1782800620000,-973.12237754,9.487e-05,2]
[426769576,1782800620000,-384.91571812,9.487e-05,2]
[426769582,1782800621000,-519.30383036,9.487e-05,2]
[426769581,1782800621000,-973.12237757,9.487e-05,2]
[426769580,1782800621000,-973.12237757,9.487e-05,2]
[426769578,1782800621000,-973.12237754,9.487e-05,2]
[426769579,1782800621000,-973.12237754,9.487e-05,2]
[426769577,1782800621000,-588.20665942,9.487e-05,2]
[426769584,1782800622000,-232.1695239,9.487e-05,2]
[426769585,1782800622000,-4314.01192889,9.488e-05,2]
[426769583,1782800622000,-453.81854721,9.487e-05,2]
[426769586,1782800623000,-5000.0,9.488e-05,2]
[426769587,1782800624000,-5000.0,9.488e-05,2]
[426769588,1782800625000,-5000.0,9.488e-05,2]
[426769589,1782800626000,-5000.0,9.488e-05,2]
[426769590,1782800627000,-5000.0,9.488e-05,2]
[426769591,1782800628000,-5000.0,9.488e-05,2]
[426769592,1782800629000,-5000.0,9.488e-05,2]
[426769593,1782800630000,-5000.0,9.488e-05,2]
[426769594,1782800631000,-5000.0,9.488e-05,2]
[426769595,1782800633000,-5000.0,9.488e-05,2]
[426769596,1782800670000,466.51,8.697e-05,2]
[426769597,1782800689000,539.99,8.697e-05,2]
[426769598,1782800750000,-9984.0,9.488e-05,2]
[426769599,1782800759000,243.38,8.752e-05,3]
[426769600,1782800781000,-4987.0,9.488e-05,2]
[426769601,1782800801000,-5089.0,9.488e-05,2]
[426769602,1782800813000,3203.15,8.684e-05,2]
[426769603,1782800822000,-5055.0,9.488e-05,2]
[426769604,1782800832000,3800.0,0.0001,3]
[426769605,1782800846000,-500.0,9.487e-05,2]
[426769609,1782800850000,-500.0,9.487e-05,2]
[426769610,1782800850000,-500.0,9.487e-05,2]
[426769607,1782800850000,-3307.966964,9.439e-05,2]
[426769608,1782800850000,-739.23483311,9.487e-05,2]
[426769606,1782800850000,-150.0,9.203e-05,2]
[426769611,1782800851000,-60.79820289,9.487e-05,2]
[426769612,1782800872000,-439.20179711,9.487e-05,2]
[426769613,1782800872000,-500.0,9.487e-05,2]
[426769614,1782800872000,-500.0,9.487e-05,2]
[426769615,1782800872000,-500.0,9.487e-05,2]
[426769621,1782800873000,-451.79820289,9.487e-05,2]
[426769620,1782800873000,-500.0,9.487e-05,2]
[426769619,1782800873000,-500.0,9.487e-05,2]
[426769618,1782800873000,-500.0,9.487e-05,2]
[426769617,1782800873000,-500.0,9.487e-05,2]
[426769616,1782800873000,-500.0,9.487e-05,2]
[426769622,1782800899000,-48.20179711,9.487e-05,2]
[426769623,1782800900000,-500.0,9.487e-05,2]
[426769624,1782800900000,-491.47084194,9.487e-05,2]
[426769625,1782800900000,-500.0,9.487e-05,2]
[426769627,1782800900000,-372.34176263,9.487e-05,2]
[426769628,1782800900000,-243.54266572,9.487e-05,2]
[426769629,1782800900000,-2485.1993532,9.488e-05,2]
[426769626,1782800900000,-287.44537651,9.487e-05,2]
[426769630,1782800918000,30926.62,8.676e-05,2]
[426769632,1782800921000,-10.09151889,9.548e-05,2]
[426769631,1782800921000,-279.90848111,9.488e-05,2]
[426769635,1782800953000,-150.0,9.582e-05,2]
[426769634,1782800953000,-241.82183572,9.548e-05,2]
[426769633,1782800953000,-283.74464509,9.548e-05,2]
[426769636,1782800954000,-306.33,9.608e-05,2]
[426769638,1782800954000,-317.14,9.62e-05,2]
[426769637,1782800954000,-307.02,9.616e-05,2]
[426769640,1782800954000,-306.33,9.634e-05,2]
[426769644,1782800954000,-2077.94816428,9.642e-05,2]
[426769641,1782800954000,-306.33,9.637e-05,2]
[426769642,1782800954000,-307.02,9.64e-05,2]
[426769643,1782800954000,-306.53,9.642e-05,2]
[426769639,1782800954000,-306.53,9.62e-05,2]
[426769650,1782800964000,-927.17453852,9.658e-05,2]
[426769649,1782800964000,-317.14,9.658e-05,2]
[426769647,1782800964000,-785.80375169,9.645e-05,2]
[426769648,1782800964000,-512.63,9.646e-05,2]
[426769645,1782800964000,-2676.09183572,9.642e-05,2]
[426769646,1782800964000,-1333.31624831,9.645e-05,2]
[426769651,1782800971000,2401.89,8.725e-05,2]
[426769656,1782800989000,-160.0,9.661e-05,2]
[426769653,1782800989000,-615.75218175,9.658e-05,2]
[426769652,1782800989000,-675.58,9.643e-05,2]
[426769654,1782800989000,-1.73546148,9.658e-05,2]
[426769655,1782800989000,-1000.0,9.661e-05,2]
[426769662,1782800989000,-150.0,9.661e-05,2]
[426769658,1782800989000,-500.0,9.661e-05,2]
[426769660,1782800989000,-55.12652109,9.661e-05,2]
[426769659,1782800989000,-500.0,9.661e-05,2]
[426769661,1782800989000,-227.45542495,9.661e-05,2]
[426769657,1782800989000,-632.25704719,9.661e-05,2]
[426769663,1782800990000,-1639.1747786,9.662e-05,2]
[426769664,1782801006000,-8360.8152214,9.662e-05,2]
[426769683,1782801032000,-306.33,9.666e-05,2]
[426769675,1782801032000,-508.32840855,9.661e-05,2]
[426769681,1782801032000,-307.02,9.664e-05,2]
[426769674,1782801032000,-500.0,9.661e-05,2]
[426769685,1782801032000,-150.99,9.671e-05,2]
[426769686,1782801032000,-1525.74,9.671e-05,2]
[426769684,1782801032000,-306.33,9.671e-05,2]
[426769687,1782801032000,-153.0,9.677e-05,2]
[426769688,1782801032000,-9999.99,9.677e-05,2]
[426769696,1782801032000,-512.63,9.709e-05,2]
[426769678,1782801032000,-250.0,9.661e-05,2]
[426769679,1782801032000,-410.40072081,9.662e-05,2]
[426769682,1782801032000,-306.53,9.665e-05,2]
[426769673,1782801032000,-500.0,9.661e-05,2]
[426769676,1782801032000,-343.32484267,9.661e-05,2]
[426769677,1782801032000,-150.0,9.661e-05,2]
[426769672,1782801032000,-500.0,9.661e-05,2]
[426769669,1782801032000,-4997.86254888,9.562e-05,2]
[426769670,1782801032000,-387.94120466,9.641e-05,2]
[426769668,1782801032000,-203591.32345112,9.562e-05,2]
[426769671,1782801032000,-500.0,9.641e-05,2]
[426769689,1782801032000,-306.53,9.688e-05,2]
[426769680,1782801032000,-250.0,9.664e-05,2]
[426769694,1782801032000,-317.14,9.696e-05,2]
[426769692,1782801032000,-306.33,9.695e-05,2]
[426769690,1782801032000,-307.02,9.688e-05,2]
[426769730,1782801032000,-16845.72296031,9.717e-05,2]
[426769715,1782801032000,-1801.3306573,9.717e-05,2]
[426769725,1782801032000,-2927.46466822,9.717e-05,2]
[426769723,1782801032000,-1477.02291702,9.717e-05,2]
[426769713,1782801032000,-1668.97568377,9.717e-05,2]
[426769728,1782801032000,-792.77143306,9.717e-05,2]
[426769711,1782801032000,-28408.15930856,9.717e-05,2]
[426769709,1782801032000,-19779.34444255,9.717e-05,2]
[426769718,1782801032000,-1174.94913309,9.717e-05,2]
[426769707,1782801032000,-278.99579925,9.717e-05,2]
[426769706,1782801032000,262.42,8.714e-05,2]
[426769720,1782801032000,-3076.67817095,9.717e-05,2]
[426769705,1782801032000,-40722.8473437,9.717e-05,2]
[426769703,1782801032000,-116563.95759096,9.717e-05,2]
[426769701,1782801032000,-2000.0,9.717e-05,2]
[426769697,1782801032000,-306.53,9.71e-05,2]
[426769700,1782801032000,-27635.1092,9.717e-05,2]
[426769702,1782801032000,-4378.4826,9.717e-05,2]
[426769699,1782801032000,-506.68,9.712e-05,2]
[426769695,1782801032000,-306.33,9.708e-05,2]
[426769693,1782801032000,-999.99,9.695e-05,2]
[426769691,1782801032000,-410.40072081,9.69e-05,2]
[426769698,1782801032000,-307.02,9.712e-05,2]
[426769744,1782801038000,-584.88452846,9.717e-05,2]
[426769743,1782801038000,-304.13,9.63e-05,2]
[426769745,1782801038000,-1618.14867355,9.717e-05,2]
[426769749,1782801038000,-5821.35679425,9.717e-05,2]
[426769748,1782801038000,-870.6563623,9.717e-05,2]
[426769747,1782801038000,-11143.93541388,9.717e-05,2]
[426769746,1782801038000,-703.79086909,9.717e-05,2]
[426769753,1782801040000,-29999.931705,9.717e-05,2]
[426769754,1782801040000,-6410.92848117,9.717e-05,2]
[426769752,1782801040000,-2655.98218495,9.717e-05,2]
[426769760,1782801042000,-993.65895877,9.717e-05,2]
[426769758,1782801042000,-540.60996829,9.717e-05,2]
[426769761,1782801042000,-596.298,9.717e-05,2]
[426769759,1782801042000,-323.311332,9.717e-05,2]
[426769781,1782801043000,-630.73843092,9.717e-05,2]